bitfinex/quotes_ETHUSD_20251019
["timestamp","ask_amount","ask_price","bid_price","bid_amount"]
[1760909932954,0.001,3999.4,3999.3,17.58323364]
[1760909941915,0.001,3999.4,3999.3,18.05273364]
[1760909942095,0.001,3999.4,3999.3,21.95863146]
[1760909942297,0.001,3999.4,3999.3,18.05273364]
[1760909942699,0.001,3999.4,3999.3,18.17753364]
[1760909943010,0.001,3999.4,3999.3,17.70803364]
[1760909943693,0.001,3999.4,3999.3,14.43823364]
[1760909943887,0.001,3999.4,3999.3,17.58323364]
[1760909944087,0.001,3999.4,3999.3,14.43823364]
[1760909944287,0.001,3999.4,3999.3,17.58323364]
[1760909945688,0.001,3999.4,3999.3,14.43823364]
[1760909946107,0.001,3999.4,3999.3,17.58323364]
[1760909946685,0.001,3999.4,3999.3,14.43823364]
[1760909946888,0.001,3999.4,3999.3,17.58323364]
[1760909949625,0.1033,3999.4,3999.3,14.43823364]
[1760909952227,0.1033,3999.4,3999.3,12.7051953]
[1760909953728,0.1033,3999.4,3999.3,12.8299953]
[1760909956514,0.001,3999.4,3999.3,12.8299953]
[1760909957847,0.1033,3999.4,3999.3,12.8299953]
[1760909958546,0.001,3999.4,3999.3,12.8299953]
[1760909958752,0.1033,3999.4,3999.3,12.8299953]
[1760909959750,0.001,3999.4,3999.3,12.8299953]
[1760909960154,0.1033,3999.4,3999.3,12.8299953]
[1760909961151,0.1033,3999.4,3999.3,9.0109953]
[1760909964747,0.1033,3999.4,3999.3,9.79220593]
[1760909966963,0.001,3999.4,3999.3,9.79220593]
[1760909969857,0.001,3999.4,3999.3,3.25229748]
[1760909982460,0.001,3999.4,3999.3,7.07129748]
[1760909983787,0.001,3999.4,3999.3,7.52549748]
[1760909986399,0.001,3999.4,3999.3,7.07129748]
[1760909988477,0.001,3999.4,3999.3,7.52549748]
[1760909990301,0.001,3999.4,3999.3,7.77599748]
[1760909990503,0.001,3999.4,3999.3,7.52549748]
[1760909990805,0.001,3999.4,3999.3,7.07129748]
[1760909999889,0.001,3999.4,3999.3,7.52549748]
[1760910000437,0.001,3999.4,3999.3,9.03280427]
[1760910000811,0.001,3999.4,3999.3,10.76080427]
[1760910001009,0.001,3999.4,3999.3,6.94180427]
[1760910007323,0.001,3999.4,3999.3,7.06660427]
[1760910008612,0.001,3999.4,3999.3,10.21060427]
[1760910017865,0.001,3999.4,3999.3,14.02960427]
[1760910021033,0.001,3999.4,3999.3,10.21060427]
[1760910024588,0.001,3999.4,3999.3,6.61240427]
[1760910024777,0.001,3999.4,3999.3,13.66024488]
[1760910025274,0.001,3999.4,3999.3,14.12974488]
[1760910030089,0.001,3999.4,3999.3,13.66024488]
[1760910030269,0.001,3999.4,3999.3,14.12974488]
[1760910032262,0.001,3999.4,3999.3,10.98674488]
[1760910032461,0.001,3999.4,3999.3,14.12974488]
[1760910032683,0.001,3999.4,3999.3,13.66024488]
[1760910033111,0.001,3999.4,3999.3,14.12974488]
[1760910033999,0.001,3999.4,3999.3,10.98674488]
[1760910034162,0.001,3999.4,3999.3,14.12974488]
[1760910036605,0.001,3999.4,3999.3,10.98674488]
[1760910036900,0.001,3999.4,3999.3,14.12974488]
[1760910038014,0.001,3999.4,3999.3,13.66024488]
[1760910038805,0.001,3999.4,3999.3,14.11564488]
[1760910040015,0.001,3999.4,3999.3,17.56508549]
[1760910040187,0.001,3999.4,3999.3,18.02048549]
[1760910040913,0.001,3999.4,3999.3,14.11564488]
[1760910041128,0.001,3999.4,3999.3,17.93464488]
[1760910043618,0.001,3999.4,3999.3,17.47924488]
[1760910044009,0.001,3999.4,3999.3,4.98029748]
[1760910044314,0.1022,3999.4,3999.3,0.75185991]
[1760910045788,0.1022,3999.4,3999.3,3.25229748]
[1760910046905,0.1022,3999.4,3999.3,0.75185991]
[1760910047410,0.1022,3999.4,3999.3,3.25229748]
[1760910054043,0.227,3999.4,3999.3,3.25229748]
[1760910054718,0.227,3999.4,3999.3,0.75185991]
[1760910055110,0.227,3999.4,3999.3,3.25229748]
[1760910055310,0.227,3999.4,3999.3,0.75185991]
[1760910055715,0.227,3999.4,3999.3,3.25229748]
[1760910063428,3.37,3999.4,3999.3,3.25229748]
[1760910063634,3.707,3999.4,3999.3,3.25229748]
[1760910064335,3.6058,3999.4,3999.3,3.25229748]
[1760910064536,3.707,3999.4,3999.3,3.25229748]
[1760910068444,3.707,3999.4,3999.3,2.50043757]
[1760910071156,3.707,3999.4,3999.3,3.2523672]
[1760910071683,3.6058,3999.4,3999.3,3.2523672]
[1760910077474,3.6058,3999.4,3998.7,6.31976709]
[1760910077475,1.728,3999.3,3999.2,2.50044763]
[1760910077683,0.46178,3999.3,3999.2,2.50044763]
[1760910077845,2.18978,3999.3,3999.2,2.50044763]
[1760910078043,2.08858,3999.3,3999.2,2.50044763]
[1760910078270,0.36058,3999.3,3999.2,2.50044763]
[1760910078472,3.144,3999.4,3999.3,2.50043757]
[1760910090808,3.144,3999.4,3998.5,0.1248]
[1760910090988,0.1248,3999.3,3999.2,2.50044013]
[1760910092688,0.001,3999.4,3999.3,2.50043757]
[1760910092919,0.001,3999.4,3999.3,3.51725534]
[1760910093387,0.001,3999.4,3999.3,4.26906626]
[1760910100708,0.001,3999.4,3999.3,6.63066626]
[1760910102741,0.001,3999.4,3999.3,6.75546626]
[1760910104755,0.2238,4001.0,3999.3,6.75546626]
[1760910104756,0.0998,4002.1,4000.8,4.6893861]
[1760910104910,0.0998,4002.3,4002.2,2.49862575]
[1760910107342,0.1008,4002.3,4002.2,2.49862575]
[1760910108325,0.001,4002.3,4002.2,2.49862575]
[1760910108617,0.1008,4002.3,4002.2,2.49862575]
[1760910111812,0.001,4002.3,4002.2,2.49862575]
[1760910113350,0.001,4002.3,4001.1,5.1329861]
[1760910113351,0.1,4002.3,4001.1,5.1329861]
[1760910113525,0.099,4002.2,4001.8,2.4988201]
[1760910113719,0.1034,4001.9,4001.8,2.4988201]
[1760910113919,0.2024,4001.9,4001.8,2.4988201]
[1760910115466,0.1248,4002.2,4002.1,2.49868818]
[1760910116344,0.2239,4002.2,4002.1,2.49868818]
[1760910121554,0.2239,4002.2,4001.9,2.49880185]
[1760910121555,0.1248,4002.2,4001.9,2.49875411]
[1760910121866,0.1248,4002.2,4001.1,3.25066765]
[1760910121867,0.1248,4001.9,4001.8,2.49886903]
[1760910122067,3.2658,4001.9,4001.8,2.49886903]
[1760910141234,3.79488,4001.9,4001.3,3.819]
[1760910141441,0.1248,4001.3,4001.2,2.49919538]
[1760910141616,3.2648,4001.3,4001.1,2.49930162]
[1760910142322,3.2648,4001.3,4001.2,2.49925022]
[1760910144441,3.3638,4001.3,4000.8,6.31843834]
[1760910144636,0.1248,4000.8,4000.7,2.49956257]
[1760910144812,3.2648,4000.8,4000.7,2.49956257]
[1760910147727,3.2648,4000.8,4000.7,2.93066257]
[1760910148844,3.2648,4000.8,4000.7,2.49956257]
[1760910149847,3.2648,4000.8,4000.5,2.49968118]
[1760910150320,3.2648,4000.8,4000.6,2.4996]
[1760910151064,3.366,4000.8,4000.6,2.4996]
[1760910153471,3.2648,4000.8,4000.7,2.49956257]
[1760910159070,3.2648,4000.8,4000.5,2.49963287]
[1760910159232,3.2648,4000.8,4000.6,2.49958717]
[1760910159925,3.2648,4000.8,4000.7,2.49956257]
[1760910160367,3.2648,4000.8,4000.6,2.49962072]
[1760910160534,3.2648,4000.8,4000.4,2.49973314]
[1760910160736,3.2648,4000.8,4000.2,3.06451304]
[1760910161065,3.2648,4000.8,4000.6,2.49961162]
[1760910162867,3.2648,4000.8,4000.6,2.4996088]
[1760910163435,3.2648,4000.8,4000.7,2.49956257]
[1760910169495,3.2648,4000.8,4000.2,3.819]
[1760910169674,0.1248,4000.4,4000.3,2.93971251]
[1760910169990,3.2658,4000.4,4000.3,2.93971251]
[1760910171387,3.2658,4000.4,4000.3,2.49981251]
[1760910172093,3.2658,4000.4,4000.3,2.93971251]
[1760910173992,3.2658,4000.4,4000.3,2.49981251]
[1760910174293,3.2658,4000.4,4000.3,2.93971251]
[1760910174878,3.2658,4000.4,4000.3,2.49981251]
[1760910194092,3.2668,4000.4,4000.3,2.49981251]
[1760910195806,3.2668,4000.4,4000.3,2.95661251]
[1760910196195,3.2668,4000.4,4000.3,2.49981251]
[1760910202012,3.2668,4000.4,4000.3,2.95661251]
[1760910202435,3.2668,4000.4,4000.3,2.49981251]
[1760910215246,3.2668,4000.4,4000.2,4.22786576]
[1760910215613,3.2668,4000.4,4000.2,2.49986576]
[1760910222170,3.2668,4000.4,4000.1,3.2536133]
[1760910222859,3.2668,4000.4,4000.1,3.6894133]
[1760910225265,3.2668,4000.4,4000.2,2.49985778]
[1760910226473,3.60338,4000.4,4000.1,0.75369036]
[1760910226646,2.499875,4000.2,4000.1,0.002]
[1760910227166,2.598875,4000.2,4000.1,0.002]
[1760910227337,3.55685652,4000.2,4000.1,0.002]
[1760910227538,2.500125,3999.8,3999.7,0.002]
[1760910227773,5.640125,3999.8,3999.7,0.002]
[1760910227972,5.740225,3999.8,3999.7,0.002]
[1760910230672,5.740225,3999.8,3998.6,1.728]
[1760910230673,3.2401,3999.8,3999.2,0.4358]
[1760910230853,2.50035421,3999.5,3998.4,0.4358]
[1760910231050,2.50049783,3999.3,3998.7,0.4358]
[1760910231782,0.12105398,3999.2,3998.7,0.4358]
[1760910231986,3.2401,3999.1,3998.7,0.4358]
[1760910232289,0.1001,3999.0,3998.7,0.4358]
[1760910232446,0.32401,3999.0,3998.7,0.4358]
[1760910232646,0.42411,3999.0,3998.7,0.4358]
[1760910233048,0.3248,3998.9,3998.1,2.93696045]
[1760910233370,3.16095398,3998.8,3998.4,0.75209929]
[1760910233570,3.57720003,3998.8,3998.4,0.75209929]
[1760910233770,3.47590003,3998.8,3998.4,0.75209929]
[1760910233992,0.1013,3998.7,3998.4,0.75209929]
[1760910234146,3.45494605,3998.8,3998.1,2.50118314]
[1760910234350,0.75173508,3998.7,3998.1,2.50118314]
[1760910234657,0.75173508,3998.7,3998.2,0.75211438]
[1760910237588,0.75173508,3998.7,3998.2,3.25323963]
[1760910237967,0.1248,3998.2,3998.1,2.5011825]
[1760910238162,0.1248,3998.2,3997.9,2.50330741]
[1760910238163,3.2658,3998.2,3997.9,0.002]
[1760910238385,0.32658,3998.1,3997.9,0.002]
[1760910242991,0.32658,3998.1,3997.9,2.50331187]
[1760910243386,0.27588042,3998.6,3998.0,0.4358]
[1760910243576,1.895,3998.5,3998.3,2.50105625]
[1760910243763,1.895,3998.4,3998.3,2.50105625]
[1760910244404,1.895,3998.4,3998.3,3.68890841]
[1760910253009,1.895,3998.4,3998.3,3.58295167]
[1760910254578,0.1248,3998.7,3998.6,2.5008753]
[1760910254816,3.142,3998.9,3998.8,2.50075022]
[1760910254999,0.1248,3999.0,3998.9,2.50068768]
[1760910255203,3.2668,3999.0,3998.9,2.50068768]
[1760910256009,3.2668,3999.0,3998.9,3.2526437]
[1760910257815,3.2668,3999.0,3998.9,3.7033437]
[1760910258617,3.142,3999.0,3998.9,3.7033437]
[1760910258785,3.142,3999.0,3998.9,2.95138768]
[1760910258981,0.001,3999.8,3998.9,1.00839379]
[1760910259186,3.2658,3999.7,3999.6,2.50025002]
[1760910262607,3.2668,3999.7,3999.6,2.95095002]
[1760910262918,3.142,3999.7,3999.6,2.95095002]
[1760910265349,3.142,3999.7,3999.6,2.50025002]
[1760910265702,3.142,3999.7,3999.6,2.95095002]
[1760910273119,3.142,3999.7,3999.6,2.50025002]
[1760910273428,3.142,3999.7,3999.6,4.67895002]
[1760910273922,3.142,3999.7,3999.6,5.43072891]
[1760910275437,3.142,3999.7,3999.6,3.70272891]
[1760910277261,3.142,3999.7,3999.6,3.25202891]
[1760910278406,3.2448,3999.7,3999.6,2.50025002]
[1760910278723,3.142,3999.7,3999.6,2.50025002]
[1760910279865,3.2448,3999.7,3999.6,2.50025002]
[1760910280022,3.142,3999.7,3999.6,2.50025002]
[1760910280351,3.50064,3999.7,3999.6,2.50025002]
[1760910280551,3.62544,3999.7,3999.6,2.50025002]
[1760910281026,3.72824,3999.7,3999.6,2.50025002]
[1760910284479,3.72824,3999.7,3999.4,2.50031392]
[1760910284781,0.394504,3999.6,3999.4,2.50031392]
[1760910285079,0.394504,3999.6,3999.4,2.50036735]
[1760910285380,0.394504,3999.6,3999.1,3.819]
[1760910285381,0.1248,3999.4,3999.1,3.819]
[1760910285584,0.1248,3999.2,3999.1,3.819]
[1760910286184,0.1248,3999.2,3999.1,6.31956262]
[1760910287179,0.1248,3999.2,3998.6,3.90614492]
[1760910287180,0.45138,3999.2,3998.9,2.50068768]
[1760910287367,0.32658,3999.2,3998.9,2.50068768]
[1760910287780,0.1248,3998.9,3998.7,2.50080168]
[1760910287962,0.1248,3998.9,3998.8,2.50075022]
[1760910288162,3.2658,3998.9,3998.8,2.50075022]
[1760910288362,3.2658,3998.9,3998.8,2.93645022]
[1760910290285,3.2658,3998.9,3998.8,2.50075022]
[1760910291054,3.2658,3998.9,3998.8,2.93645022]
[1760910291953,3.2658,3998.9,3998.8,2.50075022]
[1760910292800,3.2658,3998.9,3998.8,2.93645022]
[1760910297605,3.2658,3998.9,3998.8,2.50075022]
[1760910298699,3.2668,3998.9,3998.8,2.50075022]
[1760910311616,3.142,3998.9,3998.8,2.50075022]
[1760910311817,3.142,3998.9,3998.8,2.97555022]
[1760910312207,3.142,3998.9,3998.8,2.50075022]
[1760910314102,3.142,3998.9,3998.8,2.97555022]
[1760910314720,3.142,3998.9,3998.8,2.50075022]
[1760910327129,0.001,3998.9,3998.8,4.37089916]
[1760910327338,0.001,3998.9,3998.8,5.1477628]
[1760910327533,0.001,3998.9,3998.8,5.1227553]
[1760910329048,0.001,3998.9,3998.8,5.2475553]
[1760910329727,0.001,3998.9,3998.8,9.0665553]
[1760910330740,0.001,3998.9,3998.8,13.7536546]
[1760910331731,0.001,3998.9,3998.8,15.4816546]
[1760910334315,0.001,3998.9,3998.8,18.6216546]
[1760910346651,0.001,3998.9,3998.8,19.2552546]
[1760910348880,0.001,3999.3,3998.9,3.818]
[1760910349088,0.001,3999.3,3999.2,8.9155994]
[1760910349250,0.001,3999.3,3999.2,12.1803994]
[1760910349454,0.001,3999.3,3999.2,12.2864994]
[1760910354586,0.1061,3999.3,3999.2,7.2936994]
[1760910354789,0.1061,3999.3,3999.2,14.2516994]
[1760910354962,0.1061,3999.3,3999.2,15.64704834]
[1760910356980,0.001,3999.3,3999.2,15.64704834]
[1760910364523,0.001,3999.3,3999.2,15.77184834]
[1760910366390,0.001,3999.3,3999.2,12.63184834]
[1760910366617,0.001,3999.3,3999.2,15.77184834]
[1760910367223,1e-08,3999.8,3999.7,2.50018751]
[1760910367425,1e-08,3999.8,3999.7,10.32728681]
[1760910367720,1e-08,3999.8,3999.7,10.79238681]
[1760910367926,1e-08,3999.8,3999.7,10.89260114]
[1760910368722,1e-08,3999.8,3999.7,12.62060114]
[1760910368921,1e-08,3999.8,3999.7,14.01595008]
[1760910370709,1e-08,3999.8,3999.7,14.64955008]
[1760910377115,1e-08,3999.8,3999.7,14.77435008]
[1760910377946,1e-08,3999.8,3999.7,14.30925008]
[1760910378251,1e-08,3999.8,3999.7,14.75935008]
[1760910380733,1e-08,3999.8,3999.7,14.30825008]
[1760910380917,1e-08,4000.0,3999.9,2.5000625]
[1760910381119,0.001,4000.1,4000.0,4.228]
[1760910381347,0.001,4000.1,4000.0,7.4918]
[1760910381553,0.001,4000.1,4000.0,7.59200906]
[1760910383031,0.1,4000.1,4000.0,7.59200906]
[1760910383226,0.001,4000.1,4000.0,7.59200906]
[1760910383440,0.1,4000.1,4000.0,4.45300906]
[1760910385253,0.1,4000.1,4000.0,2.72500906]
[1760910388672,0.001,4000.1,4000.0,4.2801449]
[1760910389159,0.001,4000.1,4000.0,7.4191449]
[1760910390143,0.001,4000.1,4000.0,5.86400906]
[1760910390463,0.1,4000.1,4000.0,5.86400906]
[1760910392741,0.001,4000.1,4000.0,5.86400906]
[1760910392944,0.001,4000.1,4000.0,9.68200906]
[1760910393171,0.001,4000.1,4000.0,6.54300906]
[1760910393370,0.001,4000.1,4000.0,9.68200906]
[1760910397371,0.1,4000.1,4000.0,6.54300906]
[1760910397571,0.1,4000.1,4000.0,9.68200906]
[1760910397774,0.001,4000.1,4000.0,6.54300906]
[1760910397973,0.001,4000.1,4000.0,9.68200906]
[1760910400690,0.001,4000.1,4000.0,6.54300906]
[1760910400881,0.1,4000.1,4000.0,6.54300906]
[1760910402686,0.1,4000.1,4000.0,6.54500906]
[1760910403284,0.001,4000.1,4000.0,6.54500906]
[1760910404468,0.001,4000.1,4000.0,13.71881304]
[1760910407597,1e-08,4000.4,4000.3,2.49981251]
[1760910407893,1e-08,4000.4,4000.3,9.69339133]
[1760910408101,1e-08,4000.4,4000.3,10.11629321]
[1760910408301,1e-08,4000.4,4000.3,11.51023336]
[1760910410289,1e-08,4000.4,4000.3,12.79033336]
[1760910410494,1e-08,4000.8,4000.7,2.49956257]
[1760910410681,1e-08,4000.8,4000.7,7.03794327]
[1760910410884,1e-08,4000.8,4000.7,8.79819238]
[1760910411078,1e-08,4000.8,4000.7,9.06959238]
[1760910411732,1e-08,4000.8,4000.7,14.70237308]
[1760910412027,0.099,4002.3,4000.8,4.86110009]
[1760910412195,0.099,4002.3,4000.8,5.33399509]
[1760910412395,0.099,4002.3,4000.8,5.85555496]
[1760910412596,0.099,4002.3,4000.8,6.36955496]
[1760910413902,0.099,4002.2,4000.8,6.36955496]
[1760910414218,0.514,4002.5,4000.8,6.36955496]
[1760910414219,0.1034,4001.9,4000.8,6.36955496]
[1760910414386,0.1034,4001.9,4000.8,9.50755496]
[1760910414586,0.1034,4001.9,4000.8,5.28805496]
[1760910414786,0.1034,4001.9,4000.8,16.23561636]
[1760910415016,0.0991,4001.8,4000.8,16.23561636]
[1760910415316,0.0991,4001.8,4000.8,16.68351636]
[1760910415711,0.0991,4001.8,4000.8,17.31711636]
[1760910420718,0.0991,4001.8,4000.8,17.44191636]
[1760910421651,0.001,4001.4,4000.8,17.44191636]
[1760910422149,0.001,4001.4,4000.8,9.31763566]
[1760910422429,1e-08,4000.9,4000.8,12.36885496]
[1760910422634,1e-08,4000.9,4000.8,9.23085496]
[1760910422860,1e-08,4000.9,4000.8,12.36885496]
[1760910423554,1e-08,4000.9,4000.8,16.27363566]
[1760910425361,1e-08,4000.9,4000.8,9.23085496]
[1760910425646,1e-08,4000.9,4000.8,16.27363566]
[1760910428228,0.099,4001.3,4001.2,2.49925022]
[1760910428429,0.099,4001.3,4001.2,6.52883092]
[1760910428941,0.099,4001.3,4001.2,6.62901914]
[1760910432042,0.001,4001.4,4001.3,2.49918776]
[1760910432464,0.1,4001.4,4001.3,2.49918776]
[1760910432752,0.1,4001.4,4001.3,2.60258776]
[1760910433944,0.1,4001.4,4001.3,6.42058776]
[1760910434448,0.001,4001.4,4001.3,6.42058776]
[1760910438340,0.1,4001.4,4001.3,6.42058776]
[1760910438850,0.001,4001.4,4001.3,6.42058776]
[1760910460275,0.001,4001.4,4001.3,7.91102498]
[1760910462584,0.001,4001.4,4001.3,6.42058776]
[1760910479311,0.001,4001.4,4001.3,6.87338776]
[1760910481309,0.001,4001.4,4001.3,6.42058776]
[1760910481683,0.001,4001.4,4001.3,6.87338776]
[1760910482817,0.001,4001.4,4001.3,6.42058776]
[1760910483412,0.001,4001.4,4001.3,6.87338776]
[1760910484280,0.001,4001.4,4001.3,8.38676498]
[1760910484478,0.001,4001.4,4001.3,7.93396498]
[1760910484691,0.001,4001.4,4001.3,6.42058776]
[1760910486418,0.001,4001.4,4001.3,2.60258776]
[1760910486597,0.001,4001.4,4001.3,2.49918776]
[1760910487417,0.1,4001.4,4001.3,2.49918776]
[1760910488112,0.6336,4001.3,4000.9,0.002]
[1760910488322,0.65792687,4001.2,4000.9,0.001]
[1760910488527,0.75602687,4001.2,4000.9,0.001]
[1760910489279,4.22731564,4001.1,4000.9,0.001]
[1760910489523,0.02095398,4001.0,4000.9,0.001]
[1760910489709,0.11905398,4001.0,4000.9,0.001]
[1760910489902,3.7503574,4001.0,4000.9,0.001]
[1760910490208,10.6738954,4001.0,4000.9,0.001]
[1760910490414,10.75318664,4001.0,4000.9,0.001]
[1760910491091,12.6235142,4001.0,4000.9,0.001]
[1760910494202,5.6012152,4001.0,4000.9,0.001]
[1760910494522,12.6445092,4001.0,4000.9,0.001]
[1760910495912,12.1393602,4001.0,4000.9,0.001]
[1760910496428,12.0923022,4001.0,4000.9,0.001]
[1760910499424,5.6012152,4001.0,4000.9,0.001]
[1760910499630,11.99205698,4001.0,4000.9,0.001]
[1760910503026,10.76820698,4001.0,4000.9,0.001]
[1760910503430,13.90620698,4001.0,4000.9,0.001]
[1760910504519,13.95896498,4001.0,4000.9,0.001]
[1760910504919,8.63896998,4001.0,4000.9,0.001]
[1760910505123,10.83789898,4001.0,4000.9,0.001]
[1760910505620,12.78499098,4001.0,4000.9,0.001]
[1760910506835,11.89581498,4001.0,4000.9,0.001]
[1760910507027,11.59081498,4001.0,4000.9,0.001]
[1760910507632,11.83605498,4001.0,4000.9,0.001]
[1760910507833,8.63896998,4001.0,4000.9,0.001]
[1760910509932,9.76911747,4000.9,4000.8,0.002]
[1760910510134,11.73661934,4000.9,4000.8,0.002]
[1760910511202,25.36062534,4000.9,4000.8,0.002]
[1760910511506,25.46088589,4000.9,4000.8,0.002]
[1760910512235,25.46088589,4000.9,3999.8,0.002]
[1760910512236,18.3602335,4000.1,3999.8,0.002]
[1760910512421,19.8900367,4000.1,3999.8,0.002]
[1760910512733,22.6231367,4000.1,3999.8,0.002]
[1760910513036,19.99032616,4000.1,3999.8,0.002]
[1760910513200,16.02989616,4000.1,3999.8,0.002]
[1760910513396,19.0686067,4000.1,4000.0,0.4723]
[1760910513954,19.0686067,4000.1,4000.0,0.002]
[1760910514239,19.11218312,4000.1,4000.0,0.002]
[1760910514734,18.33804593,4000.1,4000.0,0.002]
[1760910514947,17.81888093,4000.1,4000.0,0.002]
[1760910518638,17.22240893,4000.1,4000.0,0.002]
[1760910523122,0.098455,4000.0,3999.8,0.002]
[1760910523329,6.95215354,4000.0,3999.8,0.002]
[1760910523741,7.34428884,4000.0,3999.8,0.002]
[1760910525151,12.29836984,4000.0,3999.8,0.002]
[1760910525946,10.30828784,4000.0,3999.8,0.002]
[1760910526155,10.40638784,4000.0,3999.8,0.002]
[1760910527136,7.34393384,4000.0,3999.8,0.002]
[1760910527469,13.62464584,4000.0,3999.8,0.002]
[1760910528071,13.65164796,4000.0,3999.8,0.002]
[1760910528273,13.97644796,4000.0,3999.8,0.002]
[1760910529241,7.37093596,4000.0,3999.8,0.002]
[1760910529465,13.97877996,4000.0,3999.8,0.002]
[1760910530366,7.37093596,4000.0,3999.8,0.002]
[1760910530668,13.47568296,4000.0,3999.8,0.002]
[1760910531478,13.65888296,4000.0,3999.8,0.002]
[1760910534175,13.85726311,4000.0,3999.8,0.002]
[1760910534540,13.75916311,4000.0,3999.8,0.002]
[1760910534740,17.13561081,4000.0,3999.8,0.002]
[1760910534940,17.23371081,4000.0,3999.8,0.002]
[1760910535866,20.55730881,4000.0,3999.8,0.002]
[1760910536740,7.17718081,4000.0,3999.8,0.002]
[1760910536940,20.46262881,4000.0,3999.8,0.002]
[1760910537450,20.56072881,4000.0,3999.8,0.002]
[1760910537954,21.277212,4000.0,3999.8,0.002]
[1760910538756,21.179112,4000.0,3999.8,0.002]
[1760910538956,21.175614,4000.0,3999.8,0.002]
[1760910539159,20.78342881,4000.0,3999.8,0.002]
[1760910539362,19.57851581,4000.0,3999.8,0.002]
[1760910539874,19.57851581,4000.0,3999.4,0.002]
[1760910539875,10.27608253,3999.5,3999.4,0.002]
[1760910540072,18.60240345,3999.5,3999.4,0.002]
[1760910541173,18.78978645,3999.5,3999.4,0.002]
[1760910541556,18.83336893,3999.5,3999.4,0.002]
[1760910542077,19.63111093,3999.5,3999.4,0.002]
[1760910542280,20.02331062,3999.5,3999.4,0.002]
[1760910542868,19.44977262,3999.5,3999.4,0.002]
[1760910543175,9.80578296,3999.5,3999.4,0.002]
[1760910543375,15.89981862,3999.5,3999.4,0.002]
[1760910544081,18.76977462,3999.5,3999.4,0.002]
[1760910545078,18.76744162,3999.5,3999.4,0.002]
[1760910546054,20.78278662,3999.5,3999.4,0.002]
[1760910546489,16.34595162,3999.5,3999.4,0.002]
[1760910546986,12.43726396,3999.5,3999.4,0.002]
[1760910547187,13.62000796,3999.5,3999.4,0.002]
[1760910549399,15.77604796,3999.5,3999.4,0.002]
[1760910549600,12.30289296,3999.5,3999.4,0.002]
[1760910550368,13.48272896,3999.5,3999.4,0.002]
[1760910551379,16.99718296,3999.5,3999.4,0.002]
[1760910551782,15.81438296,3999.5,3999.4,0.002]
[1760910552507,13.31620296,3999.5,3999.4,0.002]
[1760910552806,12.97476096,3999.5,3999.4,0.002]
[1760910553402,17.95845296,3999.5,3999.4,0.002]
[1760910553701,16.98347996,3999.5,3999.4,0.002]
[1760910555204,3.2225551,3999.2,3999.1,0.002]
[1760910555405,15.43894955,3999.2,3999.1,0.002]
[1760910556608,13.24216155,3999.2,3999.1,0.439]
[1760910556793,15.43894955,3999.2,3999.1,0.002]
[1760910556992,13.24216155,3999.2,3999.1,0.002]
[1760910560011,15.43894955,3999.2,3999.1,0.002]
[1760910560421,13.24216155,3999.2,3999.1,0.002]
[1760910561223,17.67237855,3999.2,3999.1,0.002]
[1760910562004,15.87150155,3999.2,3999.1,0.002]
[1760910562231,22.41394855,3999.2,3999.1,0.002]
[1760910563426,22.38392255,3999.2,3999.1,0.002]
[1760910564324,22.59693455,3999.2,3999.1,0.002]
[1760910565326,4.94861762,3999.1,3999.0,0.002]
[1760910565623,14.03020795,3999.1,3999.0,0.002]
[1760910565810,14.00925397,3999.1,3999.0,0.002]
[1760910566133,14.4450681,3999.1,3999.0,0.002]
[1760910566341,15.7298741,3999.1,3999.0,0.002]
[1760910567425,15.9178671,3999.1,3999.0,0.002]
[1760910568033,15.52563829,3999.1,3999.0,0.002]
[1760910568432,17.04953029,3999.1,3999.0,0.002]
[1760910570655,17.05186329,3999.1,3999.0,0.002]
[1760910570957,17.44409492,3999.1,3999.0,0.002]
[1760910571327,17.4005096,3999.1,3999.0,0.002]
[1760910571835,17.8118096,3999.1,3999.0,0.002]
[1760910572035,17.5055096,3999.1,3999.0,0.002]
[1760910572840,18.4842666,3999.1,3999.0,0.002]
[1760910573354,13.95977615,3999.0,3998.9,0.002]
[1760910573558,15.95187469,3999.0,3998.9,0.002]
[1760910573851,15.76370669,3999.0,3998.9,0.002]
[1760910574358,15.80729338,3999.0,3998.9,0.002]
[1760910574858,20.68847281,3999.0,3998.9,0.002]
[1760910575939,20.68864781,3999.0,3998.9,0.002]
[1760910576538,20.64506112,3999.0,3998.9,0.002]
[1760910576961,20.63988612,3999.0,3998.9,0.002]
[1760910577956,20.45189112,3999.0,3998.9,0.002]
[1760910578842,11.63196312,3999.0,3998.9,0.002]
[1760910579048,20.63988712,3999.0,3998.9,0.002]
[1760910579846,20.68347382,3999.0,3998.9,0.002]
[1760910580867,20.68447382,3999.0,3998.9,0.002]
[1760910581264,20.68464882,3999.0,3998.9,0.002]
[1760910582239,20.49647782,3999.0,3998.9,0.002]
[1760910583464,20.68447482,3999.0,3998.9,0.002]
[1760910584248,11.67654982,3999.0,3998.9,0.002]
[1760910584449,20.68447482,3999.0,3998.9,0.002]
[1760910586451,21.17064582,3999.0,3998.9,0.002]
[1760910587862,21.17564582,3999.0,3998.9,0.002]
[1760910588243,4.94280522,3998.8,3998.7,0.002]
[1760910588445,9.49552985,3998.8,3998.7,0.4741]
[1760910588648,9.47457587,3998.8,3998.7,0.4741]
[1760910590474,9.47457587,3998.8,3998.7,0.002]
[1760910592273,9.47457587,3998.8,3998.7,0.4741]
[1760910596379,9.47457587,3998.8,3998.7,0.002]
[1760910597063,9.47457587,3998.8,3998.6,0.002]
[1760910597064,2.57539285,3998.5,3998.4,0.002]
[1760910597269,7.46434683,3998.5,3998.4,0.002]
[1760910597480,7.44339285,3998.5,3998.4,0.002]